fUST/lending_fUST_20240824
["ID","MTS","AMOUNT","RATE_DAILY","PERIOD"]
[335706628,1724455849520,-698.37,0.00013972,2]
[335706629,1724455849530,-943.315749,0.00013972,2]
[335706630,1724455849540,-522.93027776,0.00013972,2]
[335706631,1724455849550,-500.0,0.00013972,2]
[335706632,1724455849559,-500.0,0.00013972,2]
[335706633,1724455849569,-943.315746,0.00013972,2]
[335706634,1724455849578,-500.0,0.00013972,2]
[335706635,1724455849587,-1077.99,0.00013972,2]
[335706636,1724455849598,-500.0,0.00013972,2]
[335706637,1724455849608,-500.0,0.00013972,2]
[335706638,1724455849618,-500.0,0.00013972,2]
[335706639,1724455849627,-652.96,0.00013972,2]
[335706640,1724455849637,-751.72,0.00013972,2]
[335706641,1724455849646,-500.0,0.00013972,2]
[335706642,1724455849656,-500.0,0.00013972,2]
[335706643,1724455849666,-1025.75,0.00013972,2]
[335706644,1724455849676,-1412.74,0.00013972,2]
[335706645,1724455849685,-500.0,0.00013972,2]
[335706646,1724455849695,-1596.47,0.00013972,2]
[335706647,1724455849705,-1579.660822,0.00013972,2]
[335706648,1724455849715,-500.0,0.00013972,2]
[335706649,1724455849725,-500.0,0.00013972,2]
[335706650,1724455849737,-749.4,0.00013972,2]
[335706651,1724455849748,-500.0,0.00013972,2]
[335706652,1724455849759,-500.0,0.00013972,2]
[335706653,1724455849769,-924.39,0.00013972,2]
[335706654,1724455849779,-1778.77,0.00013972,2]
[335706655,1724455849789,-468.51483986,0.00013972,2]
[335706656,1724455849798,-691.92,0.00013972,2]
[335706657,1724455849808,-500.0,0.00013972,2]
[335706658,1724455849818,-500.0,0.00013972,2]
[335706659,1724455849828,-500.0,0.00013972,2]
[335706660,1724455849837,-585.08,0.00013972,2]
[335706661,1724455849847,-500.0,0.00013972,2]
[335706662,1724455849858,-500.0,0.00013972,2]
[335706663,1724455849871,-500.0,0.00013972,2]
[335706664,1724455849881,-500.0,0.00013972,2]
[335706665,1724455849891,-535.16,0.00013972,2]
[335706666,1724455849900,-500.0,0.00013972,2]
[335706667,1724455849910,-2286.16,0.00013972,2]
[335706668,1724455849920,-207.68521637,0.00013972,2]
[335706669,1724455849930,-500.0,0.00013972,2]
[335706670,1724455849941,-500.0,0.00013972,2]
[335706671,1724455849952,-558.15636667,0.00013972,2]
[335706672,1724455849962,-1140.01,0.00013972,2]
[335706673,1724455849973,-500.0,0.00013972,2]
[335706674,1724455849982,-500.0,0.00013972,2]
[335706675,1724455849991,-514.802227,0.00013972,2]
[335706676,1724455850001,-172.1439037,0.00013972,2]
[335706677,1724455850011,-500.0,0.00013972,2]
[335706678,1724455850021,-514.802227,0.00013972,2]
[335706679,1724455850162,-514.802227,0.00013972,2]
[335706680,1724455850190,-500.0,0.00013972,2]
[335706681,1724455850200,-514.802227,0.00013972,2]
[335706682,1724455850210,-500.0,0.00013972,2]
[335706683,1724455850219,-514.802227,0.00013972,2]
[335706684,1724455850230,-514.802227,0.00013972,2]
[335706685,1724455850239,-514.802227,0.00013972,2]
[335706686,1724455850249,-500.0,0.00013972,2]
[335706687,1724455850259,-500.0,0.00013972,2]
[335706688,1724455850269,-514.802235,0.00013972,2]
[335706689,1724455850279,-500.0,0.00013972,2]
[335706690,1724455850289,-500.0,0.00013972,2]
[335706691,1724455850299,-500.0,0.00013972,2]
[335706692,1724455850310,-703.78,0.00013972,2]
[335706693,1724455850320,-500.0,0.00013972,2]
[335706694,1724455850331,-506.45474192,0.00013972,2]
[335706695,1724455850341,-500.0,0.00013972,2]
[335706696,1724455850352,-1004.61,0.00013972,2]
[335706697,1724455850363,-500.0,0.00013972,2]
[335706698,1724455850373,-500.0,0.00013972,2]
[335706699,1724455850382,-500.0,0.00013972,2]
[335706700,1724455850392,-729.78,0.00013972,2]
[335706701,1724455850401,-500.0,0.00013972,2]
[335706702,1724455850411,-500.0,0.00013972,2]
[335706703,1724455850420,-2544.863292,0.00013972,2]
[335706704,1724455850430,-500.0,0.00013972,2]
[335706705,1724455850439,-500.0,0.00013972,2]
[335706706,1724455850449,-658.85,0.00013972,2]
[335706707,1724455850458,-2544.863286,0.00013972,2]
[335706708,1724455850467,-500.0,0.00013972,2]
[335706709,1724455850477,-500.0,0.00013972,2]
[335706710,1724455850486,-2154.11,0.00013972,2]
[335706711,1724455850496,-681.47,0.00013972,2]
[335706712,1724455850505,-500.0,0.00013972,2]
[335706713,1724455850515,-610.56,0.00013972,2]
[335706714,1724455850525,-500.0,0.00013972,2]
[335706715,1724455850535,-1378.02,0.00013972,2]
[335706716,1724455850544,-500.0,0.00013972,2]
[335706717,1724455850554,-500.0,0.00013972,2]
[335706718,1724455850563,-500.0,0.00013972,2]
[335706719,1724455850573,-1651.68,0.00013972,2]
[335706720,1724455850583,-1307.49,0.00013972,2]
[335706721,1724455850593,-500.0,0.00013972,2]
[335706722,1724455850604,-500.0,0.00013972,2]
[335706723,1724455850614,-500.0,0.00013972,2]
[335706724,1724455850623,-500.0,0.00013972,2]
[335706725,1724455850632,-1479.86,0.00013972,2]
[335706726,1724455850642,-500.0,0.00013972,2]
[335706727,1724455850653,-506.08330678,0.00013972,2]
[335706728,1724455850663,-500.0,0.00013972,2]
[335706729,1724455850673,-500.0,0.00013972,2]
[335706730,1724455850684,-500.0,0.00013972,2]
[335706731,1724455850693,-500.0,0.00013972,2]
[335706732,1724455850702,-500.0,0.00013972,2]
[335706733,1724455850712,-930.43,0.00013972,2]
[335706734,1724455850724,-500.0,0.00013972,2]
[335706735,1724455850735,-500.0,0.00013972,2]
[335706736,1724455850745,-775.6,0.00013972,2]
[335706737,1724455850755,-202.03201078,0.00013972,2]
[335706738,1724455850764,-500.0,0.00013972,2]
[335706739,1724455850775,-500.0,0.00013972,2]
[335706740,1724455850785,-766.35,0.00013972,2]
[335706741,1724455850795,-500.0,0.00013972,2]
[335706742,1724455850804,-500.0,0.00013972,2]
[335706743,1724455850814,-500.0,0.00013972,2]
[335706744,1724455850823,-1593.51,0.00013972,2]
[335706745,1724455850834,-500.16925323,0.00013972,2]
[335706746,1724455850843,-500.0,0.00013972,2]
[335706747,1724455850853,-500.0,0.00013972,2]
[335706748,1724455850864,-500.0,0.00013972,2]
[335706749,1724455850875,-500.0,0.00013972,2]
[335706750,1724455850884,-500.0,0.00013972,2]
[335706751,1724455850894,-500.0,0.00013972,2]
[335706752,1724455850903,-980.03,0.00013972,2]
[335706753,1724455850914,-500.0,0.00013972,2]
[335706754,1724455850924,-882.99,0.00013972,2]
[335706755,1724455850934,-500.0,0.00013972,2]
[335706756,1724455850946,-1781.72,0.00013972,2]
[335706757,1724455850956,-500.0,0.00013972,2]
[335706758,1724455850965,-500.0,0.00013972,2]
[335706759,1724455850974,-1114.57,0.00013972,2]
[335706760,1724455850984,-1704.29,0.00013972,2]
[335706761,1724455850994,-500.0,0.00013972,2]
[335706762,1724455851003,-500.0,0.00013972,2]
[335706763,1724455851013,-500.0,0.00013972,2]
[335706764,1724455851023,-500.0,0.00013972,2]
[335706765,1724455851032,-916.61,0.00013972,2]
[335706766,1724455851041,-865.73,0.00013972,2]
[335706767,1724455851051,-500.0,0.00013972,2]
[335706768,1724455851061,-500.0,0.00013972,2]
[335706769,1724455851071,-500.0,0.00013972,2]
[335706770,1724455851081,-500.0,0.00013972,2]
[335706771,1724455851090,-544.70045129,0.00013972,2]
[335706772,1724455851100,-3108.59,0.00013972,2]
[335706773,1724455851109,-2096.13,0.00013972,2]
[335706774,1724455851119,-895.85,0.00013972,2]
[335706775,1724455851128,-168.0982547,0.00013972,2]
[335706776,1724455851138,-500.0,0.00013972,2]
[335706777,1724455851148,-500.0,0.00013972,2]
[335706778,1724455851157,-500.0,0.00013972,2]
[335706779,1724455851166,-500.0,0.00013972,2]
[335706780,1724455851176,-1421.47,0.00013972,2]
[335706781,1724455851185,-500.0,0.00013972,2]
[335706782,1724455851195,-565.81755319,0.00013972,2]
[335706783,1724455851204,-500.0,0.00013972,2]
[335706784,1724455851213,-500.0,0.00013972,2]
[335706785,1724455851222,-1042.75,0.00013972,2]
[335706786,1724455851232,-2031.78,0.00013972,2]
[335706787,1724455851241,-546.49,0.00013972,2]
[335706788,1724455851250,-332.70948275,0.00013972,2]
[335706789,1724455851259,-500.0,0.00013972,2]
[335706790,1724455851268,-518.2226124,0.00013972,2]
[335706791,1724455851278,-500.0,0.00013972,2]
[335706792,1724455851287,-600.38,0.00013972,2]
[335706793,1724455851297,-500.0,0.00013972,2]
[335706794,1724455851306,-2416.04,0.00013972,2]
[335706795,1724455851316,-500.0,0.00013972,2]
[335706796,1724455851325,-1116.98,0.00013972,2]
[335706797,1724455851334,-669.09,0.00013972,2]
[335706798,1724455851343,-2910.55,0.00013972,2]
[335706799,1724455851353,-500.0,0.00013972,2]
[335706800,1724455851362,-500.0,0.00013972,2]
[335706801,1724455851372,-704.86,0.00013972,2]
[335706802,1724455851382,-523.13567365,0.00013972,2]
[335706803,1724455851391,-500.0,0.00013972,2]
[335706804,1724455851400,-694.81,0.00013972,2]
[335706805,1724455851411,-771.88,0.00013972,2]
[335706806,1724455851420,-500.0,0.00013972,2]
[335706807,1724455851430,-748.43,0.00013972,2]
[335706808,1724455851440,-3421.28,0.00013972,2]
[335706809,1724455851449,-549.9,0.00013972,2]
[335706810,1724455851458,-2002.78,0.00013972,2]
[335706811,1724455851468,-500.0,0.00013972,2]
[335706812,1724455851477,-500.0,0.00013972,2]
[335706813,1724455851487,-500.0,0.00013972,2]
[335706814,1724455851496,-13081.0,0.00013972,2]
[335706815,1724455851506,-1009.39,0.00013972,2]
[335706816,1724455851515,-2347.92,0.00013972,2]
[335706817,1724455851525,-500.0,0.00013972,2]
[335706818,1724455851534,-207.12393168,0.00013972,2]
[335706819,1724455851544,-1051.02,0.00013972,2]
[335706820,1724455851553,-503.039779,0.00013972,2]
[335706821,1724455851563,-500.0,0.00013972,2]
[335706822,1724455851572,-500.0,0.00013972,2]
[335706823,1724455851582,-2171.54,0.00013972,2]
[335706824,1724455851592,-500.0,0.00013972,2]
[335706825,1724455851602,-500.0,0.00013972,2]
[335706826,1724455851611,-516.53,0.00013972,2]
[335706827,1724455851621,-500.0,0.00013972,2]
[335706828,1724455851630,-1845.97,0.00013972,2]
[335706829,1724455851640,-13903.73,0.00013972,2]
[335706830,1724455851650,-899.34,0.00013972,2]
[335706831,1724455851659,-500.0,0.00013972,2]
[335706832,1724455851669,-500.0,0.00013972,2]
[335706833,1724455851680,-2367.51,0.00013972,2]
[335706834,1724455851697,-491.43908943,0.00013972,2]
[335706835,1724455851706,-500.0,0.00013972,2]
[335706836,1724455851716,-500.0,0.00013972,2]
[335706837,1724455851725,-500.0,0.00013972,2]
[335706838,1724455851735,-500.0,0.00013972,2]
[335706839,1724455851744,-500.0,0.00013972,2]
[335706840,1724455851754,-1458.33,0.00013972,2]
[335706841,1724455851763,-749.77,0.00013972,2]
[335706842,1724455851773,-2162.13,0.00013972,2]
[335706843,1724455851782,-763.05,0.00013972,2]
[335706844,1724455851792,-6686.95,0.00013972,2]
[335706845,1724455851802,-2016.03,0.00013972,2]
[335706846,1724455851812,-500.0,0.00013972,2]
[335706847,1724455851822,-500.0,0.00013972,2]
[335706848,1724455851831,-500.0,0.00013972,2]
[335706849,1724455851840,-986.58,0.00013972,2]
[335706850,1724455851850,-500.0,0.00013972,2]
[335706851,1724455851860,-690.91,0.00013972,2]
[335706852,1724455851874,-500.0,0.00013972,2]
[335706853,1724455851884,-668.04,0.00013972,2]
[335706854,1724455851893,-500.0,0.00013972,2]
[335706855,1724455851902,-527.5506171,0.00013972,2]
[335706856,1724455851914,-500.0,0.00013972,2]
[335706857,1724455851924,-500.0,0.00013972,2]
[335706858,1724455851941,-500.0,0.00013972,2]
[335706859,1724455851951,-500.0,0.00013972,2]
[335706860,1724455851960,-5007.28,0.00013972,2]
[335706861,1724455851969,-3760.76,0.00013972,2]
[335706862,1724455851980,-500.0,0.00013972,2]
[335706863,1724455851990,-1315.72,0.00013972,2]
[335706864,1724455852000,-1425.47,0.00013972,2]
[335706865,1724455852009,-900.11,0.00013972,2]
[335706866,1724455852019,-500.0,0.00013972,2]
[335706867,1724455852028,-1302.97,0.00013972,2]
[335706868,1724455852037,-500.0,0.00013972,2]
[335706869,1724455852048,-793.07,0.00013972,2]
[335706870,1724455852058,-509.34574247,0.00013972,2]
[335706871,1724455852068,-933.19,0.00013972,2]
[335706872,1724455852077,-500.0,0.00013972,2]
[335706873,1724455852087,-500.0,0.00013972,2]
[335706874,1724455852097,-1584.42,0.00013972,2]
[335706875,1724455852106,-519.74873282,0.00013972,2]
[335706876,1724455852117,-409.99527106,0.00013972,2]
[335706877,1724455852126,-6957.53,0.00013972,2]
[335706878,1724455852136,-500.0,0.00013972,2]
[335706879,1724455852145,-500.0,0.00013972,2]
[335706880,1724455852155,-500.0,0.00013972,2]
[335706881,1724455852165,-500.0,0.00013972,2]
[335706882,1724455852175,-500.0,0.00013972,2]
[335706883,1724455852190,-642.55,0.00013972,2]
[335706884,1724455852200,-1399.53,0.00013972,2]
[335706885,1724455852209,-501.79321068,0.00013972,2]
[335706886,1724455852219,-500.0,0.00013972,2]
[335706887,1724455852228,-500.0,0.00013972,2]
[335706888,1724455852238,-500.0,0.00013972,2]
[335706889,1724455852247,-500.0,0.00013972,2]
[335706890,1724455852256,-597.44,0.00013972,2]
[335706891,1724455852266,-4003.71,0.00013972,2]
[335706892,1724455852275,-658.12,0.00013972,2]
[335706893,1724455852284,-803.2,0.00013972,2]
[335706894,1724455852294,-500.0,0.00013972,2]
[335706895,1724455852303,-1095.7,0.00013972,2]
[335706896,1724455852312,-500.0,0.00013972,2]
[335706897,1724455852322,-500.0,0.00013972,2]
[335706898,1724455852331,-500.0,0.00013972,2]
[335706899,1724455852340,-666.77,0.00013972,2]
[335706900,1724455852351,-563.5930556,0.00013972,2]
[335706901,1724455852360,-442.11257951,0.00013972,2]
[335706902,1724455852369,-372.4301339,0.00013972,2]
[335706903,1724455852379,-500.0,0.00013972,2]
[335706904,1724455852389,-708.97,0.00013972,2]
[335706905,1724455852398,-501.16474508,0.00013972,2]
[335706906,1724455852409,-1571.59,0.00013972,2]
[335706907,1724455852419,-500.0,0.00013972,2]
[335706908,1724455852433,-1207.37,0.00013972,2]
[335706909,1724455852442,-500.0,0.00013972,2]
[335706910,1724455852452,-500.0,0.00013972,2]
[335706911,1724455852461,-1532.76,0.00013972,2]
[335706912,1724455852469,-1174.83,0.00013972,2]
[335706913,1724455852479,-500.0,0.00013972,2]
[335706914,1724455852488,-500.0,0.00013972,2]
[335706915,1724455852497,-500.0,0.00013972,2]
[335706916,1724455852507,-720.34,0.00013972,2]
[335706917,1724455852517,-500.0,0.00013972,2]
[335706918,1724455852527,-500.0,0.00013972,2]
[335706919,1724455852537,-642.17,0.00013972,2]
[335706920,1724455852546,-1427.05,0.00013972,2]
[335706921,1724455852557,-1198.7,0.00013972,2]
[335706922,1724455852566,-1000.0,0.00013972,2]
[335706923,1724455852576,-782.0,0.00013972,2]
[335706924,1724455852586,-500.0,0.00013972,2]
[335706925,1724455852595,-1855.57,0.00013972,2]
[335706926,1724455852604,-4017.04,0.00013972,2]
[335706927,1724455852614,-2290.88,0.00013972,2]
[335706928,1724455852624,-500.0,0.00013972,2]
[335706929,1724455852633,-4136.3,0.00013972,2]
[335706930,1724455852643,-500.0,0.00013972,2]
[335706931,1724455852652,-500.0,0.00013972,2]
[335706932,1724455852663,-500.0,0.00013972,2]
[335706933,1724455852673,-2077.0,0.00013972,2]
[335706934,1724455852684,-501.3846837,0.00013972,2]
[335706935,1724455852694,-500.0,0.00013972,2]
[335706936,1724455852704,-500.0,0.00013972,2]
[335706937,1724455852713,-939.43,0.00013972,2]
[335706938,1724455852723,-757.07,0.00013972,2]
[335706939,1724455852732,-500.0,0.00013972,2]
[335706940,1724455852742,-500.0,0.00013972,2]
[335706941,1724455852752,-906.89,0.00013972,2]
[335706942,1724455852761,-464.04485381,0.00013972,2]
[335706943,1724455852771,-500.73801096,0.00013972,2]
[335706944,1724455852780,-895.95,0.00013972,2]
[335706945,1724455852789,-500.0,0.00013972,2]
[335706946,1724455852942,-500.0,0.00013972,2]
[335706947,1724455852952,-500.0,0.00013972,2]
[335706948,1724455852961,-500.0,0.00013972,2]
[335706949,1724455852971,-500.0,0.00013972,2]
[335706950,1724455852981,-2445.7,0.00013972,2]
[335706951,1724455852991,-500.0,0.00013972,2]
[335706952,1724455853000,-500.0,0.00013972,2]
[335706953,1724455853010,-500.0,0.00013972,2]
[335706954,1724455853020,-915.74,0.00013972,2]
[335706955,1724455853030,-500.0,0.00013972,2]
[335706956,1724455853041,-500.0,0.00013972,2]
[335706957,1724455853052,-501.48782497,0.00013972,2]
[335706958,1724455853061,-5782.26,0.00013972,2]
[335706959,1724455853070,-500.0,0.00013972,2]
[335706960,1724455853080,-500.0,0.00013972,2]
[335706961,1724455853089,-2003.92,0.00013972,2]
[335706962,1724455853098,-717.14,0.00013972,2]
[335706963,1724455853108,-500.0,0.00013972,2]
[335706964,1724455853117,-500.0,0.00013972,2]
[335706965,1724455853127,-500.0,0.00013972,2]
[335706966,1724455853136,-1023.48,0.00013972,2]
[335706967,1724455853147,-500.0,0.00013972,2]
[335706968,1724455853156,-500.0,0.00013972,2]
[335706969,1724455853166,-500.0,0.00013972,2]
[335706970,1724455853176,-500.0,0.00013972,2]
[335706971,1724455853186,-2738.26,0.00013972,2]
[335706972,1724455853195,-500.0,0.00013972,2]
[335706973,1724455853205,-823.21,0.00013972,2]
[335706974,1724455853214,-500.0,0.00013972,2]
[335706975,1724455853223,-942.52,0.00013972,2]
[335706976,1724455853233,-725.43,0.00013972,2]
[335706977,1724455853243,-500.0,0.00013972,2]
[335706978,1724455853253,-508.83738647,0.00013972,2]
[335706979,1724455853262,-7927.67,0.00013972,2]
[335706980,1724455853272,-500.0,0.00013972,2]
[335706981,1724455853281,-1126.96,0.00013972,2]
[335706982,1724455853291,-1021.12,0.00013972,2]
[335706983,1724455853300,-500.0,0.00013972,2]
[335706984,1724455853309,-500.0,0.00013972,2]
[335706985,1724455853319,-2813.88,0.00013972,2]
[335706986,1724455853328,-500.0,0.00013972,2]
[335706987,1724455853337,-627.64,0.00013972,2]
[335706988,1724455853346,-980.47,0.00013972,2]
[335706989,1724455853356,-1028.06,0.00013972,2]
[335706990,1724455853365,-823.77,0.00013972,2]
[335706991,1724455853375,-537.6,0.00013972,2]
[335706992,1724455853384,-10561.9,0.00013972,2]
[335706993,1724455853393,-717.24,0.00013972,2]
[335706994,1724455853403,-500.0,0.00013972,2]
[335706995,1724455853413,-500.0,0.00013972,2]
[335706996,1724455853422,-500.0,0.00013972,2]
[335706997,1724455853432,-746.15,0.00013972,2]
[335706998,1724455853442,-760.26,0.00013972,2]
[335706999,1724455853452,-500.0,0.00013972,2]
[335707000,1724455853461,-1115.95,0.00013972,2]
[335707001,1724455853471,-4856.26,0.00013972,2]
[335707002,1724455853481,-806.72,0.00013972,2]
[335707003,1724455853490,-500.0,0.00013972,2]
[335707004,1724455853500,-500.0,0.00013972,2]
[335707005,1724455853509,-500.0,0.00013972,2]
[335707006,1724455853518,-500.0,0.00013972,2]
[335707007,1724455853528,-1008.68,0.00013972,2]
[335707008,1724455853538,-693.16,0.00013972,2]
[335707009,1724455853548,-824.13,0.00013972,2]
[335707010,1724455853558,-1499.86,0.00013972,2]
[335707011,1724455853568,-500.0,0.00013972,2]
[335707012,1724455853577,-1134.95,0.00013972,2]
[335707013,1724455853587,-500.0,0.00013972,2]
[335707014,1724455853596,-500.0,0.00013972,2]
[335707015,1724455853606,-2821.3,0.00013972,2]
[335707016,1724455853616,-500.0,0.00013972,2]
[335707017,1724455853625,-500.0,0.00013972,2]
[335707018,1724455853635,-500.0,0.00013972,2]
[335707019,1724455853644,-2168.66,0.00013972,2]
[335707020,1724455853654,-500.0,0.00013972,2]
[335707021,1724455853664,-500.0,0.00013972,2]
[335707022,1724455853674,-150.112233,0.00014,2]
[335707023,1724455853684,-150.112233,0.00014,2]
[335707024,1724455853693,-594.94258773,0.00014,4]
[335707025,1724455853703,-22299.64576315,0.00014,2]
[335707026,1724455853712,-150.112233,0.000141,2]
[335707027,1724455853722,-150.112233,0.000141,2]
[335707028,1724455853732,-500.0,0.00014143,2]
[335707029,1724455853741,-500.0,0.00014143,2]
[335707030,1724455853751,-500.0,0.00014143,2]
[335707031,1724455853761,-151.0,0.00014144,2]
[335707032,1724455853770,-151.0,0.00014144,2]
[335707033,1724455853780,-151.0,0.00014144,2]
[335707034,1724455853790,-151.0,0.00014144,2]
[335707035,1724455853799,-330.99761,0.00014144,2]
[335707036,1724455853809,-330.99761,0.00014144,2]
[335707037,1724455853820,-240.678103,0.00014144,2]
[335707038,1724455853832,-240.678103,0.00014144,2]
[335707039,1724455853843,-151.0,0.00014144,2]
[335707040,1724455853853,-151.0,0.00014144,2]
[335707041,1724455853865,-238.706342,0.00014144,2]
[335707042,1724455853878,-238.706342,0.00014144,2]
[335707043,1724455853887,-282.04414,0.00014144,2]
[335707044,1724455853897,-282.04414,0.00014144,2]
[335707045,1724455853907,-150.112233,0.000142,2]
[335707046,1724455853917,-240.678103,0.00014245,2]
[335707047,1724455853926,-240.678103,0.00014245,2]
[335707048,1724455853936,-151.0,0.00014245,2]
[335707049,1724455853948,-247.152689,0.00014245,2]
[335707050,1724455853958,-238.706342,0.00014245,2]
[335707051,1724455853968,-238.706342,0.00014245,2]
[335707052,1724455853978,-282.04414,0.00014245,2]
[335707053,1724455853988,-282.04414,0.00014245,2]
[335707054,1724455853998,-156.26,0.00014245,2]
[335707055,1724455854007,-500.0,0.00014246,2]
[335707056,1724455854016,-500.0,0.00014246,2]
[335707057,1724455854025,-502.16119231,0.00014246,2]
[335707058,1724455854036,-500.0,0.00014246,2]
[335707059,1724455854046,-151.0,0.00014246,2]
[335707060,1724455854056,-151.0,0.00014246,2]
[335707061,1724455854067,-151.0,0.00014246,2]
[335707062,1724455854076,-151.0,0.00014246,2]
[335707063,1724455854086,-500.0,0.00014246,2]
[335707064,1724455854097,-151.0,0.00014246,2]
[335707065,1724455854106,-783.97,0.00014246,2]
[335707066,1724455854116,-500.0,0.00014246,2]
[335707067,1724455854126,-500.0,0.00014246,2]
[335707068,1724455854135,-547.59399359,0.00014246,2]
[335707069,1724455854145,-330.99761,0.00014246,2]
[335707070,1724455854155,-1181.52,0.00014246,2]
[335707071,1724455854164,-500.0,0.00014246,2]
[335707072,1724455854173,-1050.63,0.00014246,2]
[335707073,1724455854183,-330.99761,0.00014246,2]
[335707074,1724455854192,-500.0,0.00014246,2]
[335707075,1724455854202,-500.0,0.00014246,2]
[335707076,1724455854212,-500.0,0.00014246,2]
[335707077,1724455854223,-500.0,0.00014246,2]
[335707078,1724455854234,-654.13,0.00014246,2]
[335707079,1724455854244,-500.0,0.00014246,2]
[335707080,1724455854257,-877.14,0.00014246,2]
[335707081,1724455854267,-500.0,0.00014246,2]
[335707082,1724455854276,-240.678103,0.00014246,2]
[335707083,1724455854286,-500.0,0.00014246,2]
[335707084,1724455854295,-240.678111,0.00014246,2]
[335707085,1724455854305,-687.61,0.00014246,2]
[335707086,1724455854314,-500.0,0.00014246,2]
[335707087,1724455854323,-500.03,0.00014246,2]
[335707088,1724455854333,-500.0,0.00014246,2]
[335707089,1724455854342,-338.59383459,0.00014246,2]
[335707090,1724455854352,-658.97,0.00014246,2]
[335707091,1724455854362,-500.0,0.00014246,2]
[335707092,1724455854371,-609.13,0.00014246,2]
[335707093,1724455854381,-500.0,0.00014246,2]
[335707094,1724455854390,-500.0,0.00014246,2]
[335707095,1724455854400,-150.0,0.00014246,2]
[335707096,1724455854409,-151.0,0.00014246,2]
[335707097,1724455854419,-822.57,0.00014246,2]
[335707098,1724455854429,-500.0,0.00014246,2]
[335707099,1724455854439,-500.0,0.00014246,2]
[335707100,1724455854451,-500.0,0.00014246,2]
[335707101,1724455854462,-500.0,0.00014246,2]
[335707102,1724455854472,-500.0,0.00014246,2]
[335707103,1724455854481,-316.89026814,0.00014246,2]
[335707104,1724455854491,-500.0,0.00014246,2]
[335707105,1724455854500,-602.58,0.00014246,2]
[335707106,1724455854510,-500.0,0.00014246,2]
[335707107,1724455854519,-238.706342,0.00014246,2]
[335707108,1724455854529,-951.69,0.00014246,2]
[335707109,1724455854538,-500.0,0.00014246,2]
[335707110,1724455854548,-500.0,0.00014246,2]
[335707111,1724455854557,-238.706338,0.00014246,2]
[335707112,1724455854566,-500.0,0.00014246,2]
[335707113,1724455854576,-500.0,0.00014246,2]
[335707114,1724455854586,-500.0,0.00014246,2]
[335707115,1724455854595,-500.0,0.00014246,2]
[335707116,1724455854604,-500.0,0.00014246,2]
[335707117,1724455854614,-500.0,0.00014246,2]
[335707118,1724455854624,-622.03,0.00014246,2]
[335707119,1724455854633,-500.0,0.00014246,2]
[335707120,1724455854643,-282.04414,0.00014246,2]
[335707121,1724455854653,-500.0,0.00014246,2]
[335707122,1724455854664,-282.044149,0.00014246,2]
[335707123,1724455854675,-711.87,0.00014246,2]
[335707124,1724455854685,-500.0,0.00014246,2]
[335707125,1724455854695,-500.0,0.00014246,2]
[335707126,1724455854704,-500.0,0.00014246,2]
[335707127,1724455854714,-500.0,0.00014246,2]